bitfinex/quotes_ETHUSD_20240730
["timestamp","ask_amount","ask_price","bid_price","bid_amount"]
[1722364598882,2.552,3293.8,3292.9,0.55324129]
[1722364599882,2.552,3293.8,3292.9,3.59002129]
[1722364600131,2.552,3293.8,3292.9,3.59001129]
[1722364600284,2.552,3293.8,3292.9,3.59004129]
[1722364600491,2.552,3293.8,3293.0,0.60734413]
[1722364600921,2.552,3293.8,3293.1,3.0366]
[1722364601134,7.39,3294.1,3293.2,0.06071855]
[1722364601285,3.0,3294.0,3293.3,0.06071688]
[1722364601501,3.0,3294.0,3293.4,35.0]
[1722364601700,3.0,3294.0,3293.5,0.06071689]
[1722364602437,3.0,3294.0,3293.6,35.0]
[1722364603167,7.39,3294.1,3293.6,35.0]
[1722364603369,24.36345,3295.5,3293.7,0.06071693]
[1722364603370,3.0,3294.5,3293.7,0.06071693]
[1722364603641,3.03532,3294.6,3293.8,3.04901288]
[1722364603810,3.03532,3294.6,3293.9,0.06070955]
[1722364604245,2.552,3294.7,3293.8,3.04901288]
[1722364604658,5.5872,3294.7,3293.8,3.04901288]
[1722364604982,2.552,3294.7,3293.8,3.04901288]
[1722364605149,7.39,3294.8,3293.9,3.7050534]
[1722364605333,7.39,3295.2,3294.0,5.33325]
[1722364605531,7.39,3295.2,3294.1,3.09641847]
[1722364605793,7.39,3295.2,3294.2,0.53939185]
[1722364605932,7.39,3295.2,3294.3,0.06069849]
[1722364606574,7.39,3295.2,3294.4,35.0]
[1722364606781,7.39,3295.2,3294.5,0.06069852]
[1722364607336,12.3881,3295.9,3294.7,3.03517]
[1722364607537,9.942,3295.9,3294.9,3.03497]
[1722364607809,9.942,3295.9,3295.0,0.06068324]
[1722364607949,9.942,3295.9,3295.0,3.09555324]
[1722364608151,9.942,3295.9,3295.1,3.03474]
[1722364608368,7.39,3295.9,3295.2,35.0]
[1722364608537,7.39,3295.9,3295.3,6.1443119]
[1722364608963,7.39,3295.9,3295.3,3.09529902]
[1722364609168,7.39,3295.9,3295.1,3.03474]
[1722364609169,7.39,3295.9,3295.1,3.03473]
[1722364609394,9.942,3295.9,3295.4,35.0]
[1722364609535,2.552,3295.9,3295.4,35.0]
[1722364609738,2.552,3295.9,3295.5,0.06067904]
[1722364609938,2.552,3295.9,3295.5,3.04901288]
[1722364611143,2.552,3295.9,3295.6,0.06067905]
[1722364611631,3.03373,3296.3,3295.6,0.06067905]
[1722364611632,2.552,3296.3,3295.6,0.06067905]
[1722364611918,3.0,3296.2,3295.6,0.06067905]
[1722364612898,3.0,3296.2,3295.2,3.03471]
[1722364613122,3.0,3296.2,3295.7,35.0]
[1722364613287,3.0,3296.2,3295.8,0.06067659]
[1722364613491,2.552,3296.3,3295.8,0.06067659]
[1722364614222,2.552,3296.3,3295.7,35.0]
[1722364614392,7.39,3296.4,3295.7,35.0]
[1722364614588,7.39,3296.4,3295.8,3.10968285]
[1722364615074,2.3201,3297.1,3295.8,3.10968285]
[1722364615075,2.552,3297.1,3296.1,2.2859]
[1722364615279,2.552,3297.1,3296.2,0.06065776]
[1722364615481,2.552,3297.1,3296.1,2.2859]
[1722364615692,2.552,3297.1,3296.2,0.531982]
[1722364615893,2.552,3297.1,3296.3,3.09433829]
[1722364616104,12.97463,3297.5,3296.4,3.03358]
[1722364616302,12.97463,3297.5,3296.3,3.03365]
[1722364616619,3.03293,3297.2,3296.5,35.0]
[1722364617182,3.03273,3297.4,3296.5,35.0]
[1722364617411,3.0,3297.3,3296.6,0.06065387]
[1722364617776,3.0,3297.3,3296.5,35.0]
[1722364618211,3.0,3297.4,3296.5,35.0]
[1722364618577,3.0,3297.4,3296.5,35.59267031]
[1722364619286,12.97464,3297.5,3296.5,35.59267031]
[1722364619480,3.03292,3297.2,3296.5,35.59267031]
[1722364620361,9.942,3297.5,3296.5,35.0]
[1722364620618,2.552,3297.1,3296.6,0.06065857]
[1722364620821,2.552,3297.5,3296.5,35.0]
[1722364621020,2.552,3297.5,3296.8,2.4857]
[1722364621205,5.58461,3297.5,3296.5,35.0]
[1722364621413,3.03269,3297.4,3296.5,35.0]
[1722364621612,2.552,3297.5,3296.5,38.0335]
[1722364621807,2.552,3297.5,3296.6,3.04901288]
[1722364622423,2.552,3297.5,3296.7,2.4132]
[1722364622606,2.552,3297.9,3296.9,3.03314]
[1722364622897,7.39,3298.1,3297.1,3.03295]
[1722364623104,7.39,3298.1,3297.2,35.36999994]
[1722364623301,7.39,3298.1,3297.3,0.06064055]
[1722364623530,10.42209,3298.1,3297.3,0.06064055]
[1722364623893,2.552,3297.9,3296.7,2.4132]
[1722364624134,3.03248,3297.7,3297.4,35.0]
[1722364624353,3.03251,3297.6,3297.4,35.0]
[1722364624689,3.03238,3297.8,3297.4,35.0]
[1722364625234,3.03247,3297.7,3297.4,35.0]
[1722364625447,8.61726,3297.5,3296.7,2.957867]
[1722364625627,2.552,3297.5,3296.7,2.4132]
[1722364625947,3.0327,3297.4,3296.8,35.0]
[1722364626716,2.552,3297.5,3296.8,35.0]
[1722364626914,2.552,3297.5,3296.9,3.04901288]
[1722364627358,2.552,3297.5,3296.7,2.4132]
[1722364627654,2.552,3297.5,3296.8,35.0]
[1722364627816,2.552,3297.1,3296.8,35.0]
[1722364628503,2.552,3297.5,3296.9,0.06065681]
[1722364628849,3.03241,3297.7,3296.9,0.06065681]
[1722364629050,3.03241,3297.7,3296.8,35.0]
[1722364629051,3.03235,3297.8,3296.8,35.0]
[1722364629252,3.03244,3297.7,3296.8,35.0]
[1722364629404,3.03257,3297.6,3296.8,35.0]
[1722364629601,3.03257,3297.6,3296.9,3.04901288]
[1722364629861,2.552,3297.9,3297.0,2.27]
[1722364630007,5.58429,3297.9,3297.0,2.27]
[1722364630202,3.0,3297.8,3297.0,2.27]
[1722364630419,3.0,3297.8,3297.1,0.06064469]
[1722364630764,2.552,3297.9,3297.2,0.23306447]
[1722364630969,2.552,3297.9,3297.3,0.06064249]
[1722364631131,7.39,3298.1,3297.3,0.06064249]
[1722364632443,7.39,3298.1,3297.3,3.09341249]
[1722364632647,7.39,3298.1,3297.4,0.6359327]
[1722364632868,7.39,3298.1,3297.5,0.06063876]
[1722364633029,2.552,3298.3,3297.5,0.06063876]
[1722364633214,2.552,3298.3,3297.6,35.0]
[1722364633423,2.552,3298.3,3297.7,0.06063647]
[1722364634068,2.552,3298.3,3297.8,35.0]
[1722364634868,2.552,3298.3,3297.9,0.06063538]
[1722364635232,2.552,3298.3,3297.8,35.0]
[1722364635439,5.58392,3298.3,3297.8,35.0]
[1722364635846,3.03208,3298.1,3297.4,0.6359327]
[1722364636166,5.58429,3297.9,3297.2,0.23306447]
[1722364636374,0.06069081,3298.2,3296.9,7.35]
[1722364636375,2.552,3297.5,3296.9,7.35]
[1722364636530,3.0327,3297.4,3296.9,7.35]
[1722364636725,3.0327,3297.4,3296.5,2.4023]
[1722364637060,3.0327,3297.4,3296.6,35.0]
[1722364637553,3.03288,3297.2,3296.6,35.0]
[1722364637736,3.03289,3297.2,3296.6,35.0]
[1722364637967,3.03294,3297.2,3296.6,35.0]
[1722364639357,3.03301,3297.1,3296.6,35.0]
[1722364639791,2.552,3297.5,3296.6,35.0]
[1722364639792,3.03274,3297.4,3296.6,35.0]
[1722364640089,3.03293,3297.2,3296.6,35.0]
[1722364640293,3.0,3297.4,3296.7,3.10966895]
[1722364640459,6.03269,3297.4,3296.7,3.10966895]
[1722364640669,3.03278,3297.3,3296.7,3.04901288]
[1722364640865,3.03292,3297.2,3296.6,35.0]
[1722364641069,3.03297,3297.1,3296.6,35.0]
[1722364642084,2.552,3297.1,3296.6,35.0]
[1722364642277,3.03367,3296.4,3295.5,2.4763]
[1722364642612,5.58539,3296.7,3295.5,2.4763]
[1722364642770,3.0,3296.6,3295.6,35.24763]
[1722364642949,3.0,3296.6,3295.7,3.03425]
[1722364643149,3.0,3296.6,3295.6,3.28192]
[1722364643643,6.03342,3296.6,3295.8,35.0]
[1722364643851,3.0,3296.6,3295.8,35.0]
[1722364644095,3.0,3296.6,3295.9,3.04901288]
[1722364645145,3.0,3296.6,3296.0,0.06066666]
[1722364645348,3.0,3296.6,3295.9,3.04901288]
[1722364645570,3.0,3296.6,3296.0,0.06066666]
[1722364645766,7.39,3296.9,3296.0,0.06066666]
[1722364646021,7.39,3296.9,3296.1,3.64824895]
[1722364646319,7.39,3296.9,3296.1,0.61436895]
[1722364646621,10.42318,3296.9,3296.1,0.61436895]
[1722364646770,10.42318,3296.9,3295.9,3.04901288]
[1722364646971,2.552,3296.7,3295.9,3.04901288]
[1722364647411,2.552,3296.7,3296.0,0.06066476]
[1722364647615,7.39,3296.9,3296.1,3.09454392]
[1722364647813,7.39,3296.9,3296.2,0.30945439]
[1722364648019,2.552,3297.1,3296.3,0.06066016]
[1722364648217,3.0,3297.0,3296.4,35.0]
[1722364648515,3.0,3297.0,3296.5,0.06065925]
[1722364648672,3.0,3297.0,3296.2,3.34324439]
[1722364648673,3.0,3297.0,3296.2,0.30945439]
[1722364648873,3.0,3297.0,3296.3,0.06065926]
[1722364649103,3.0,3297.0,3296.6,35.0]
[1722364649338,3.0,3297.0,3296.7,0.06065927]
[1722364649716,3.0,3297.0,3296.6,35.0]
[1722364650561,3.0,3297.0,3296.7,0.06065883]
[1722364650704,2.552,3297.1,3296.7,0.06065883]
[1722364651334,2.552,3297.1,3296.6,35.0]
[1722364651536,3.03321,3296.9,3296.6,35.0]
[1722364652124,2.552,3297.1,3296.6,35.0]
[1722364652563,5.58497,3297.1,3296.6,35.0]
[1722364652858,2.552,3296.7,3296.6,35.0]
[1722364653057,2.552,3296.7,3295.8,9.7144]
[1722364653362,5.58538,3296.7,3295.8,9.7144]
[1722364653524,3.03343,3296.6,3295.9,35.0]
[1722364653735,5.58542,3296.7,3295.9,35.0]
[1722364653931,2.552,3296.7,3295.9,35.98245114]
[1722364654338,5.58538,3296.7,3295.9,35.98245114]
[1722364654548,8.6188,3296.7,3295.9,35.98245114]
[1722364654748,5.58538,3296.7,3295.9,35.98245114]
[1722364654929,2.552,3296.7,3295.9,35.98245114]
[1722364655233,2.552,3296.7,3296.0,3.04901288]
[1722364655616,5.58542,3296.7,3296.0,3.04901288]
[1722364657221,2.552,3296.7,3296.0,3.04901288]
[1722364657439,2.552,3296.7,3296.1,0.06066673]
[1722364658317,7.39,3297.0,3296.2,2.46896454]
[1722364658541,7.39,3297.0,3296.3,35.55028245]
[1722364659558,10.42307,3297.0,3296.3,35.55028245]
[1722364659774,2.552,3296.7,3296.3,35.0]
[1722364659921,5.58536,3296.7,3296.3,35.0]
[1722364660269,2.552,3296.7,3296.4,0.06066459]
[1722364660420,2.552,3296.7,3296.5,3.04901288]
[1722364663463,2.552,3296.7,3295.9,0.98245114]
[1722364663464,2.552,3296.7,3296.0,0.06066471]
[1722364663640,2.552,3296.7,3296.1,35.0]
[1722364663859,5.58534,3296.7,3296.1,35.0]
[1722364665186,3.03353,3296.5,3296.1,35.0]
[1722364666357,7.39,3297.0,3296.1,35.0]
[1722364666358,2.552,3296.3,3296.1,35.0]
[1722364666648,5.58577,3296.3,3296.1,35.0]
[1722364667919,3.03379,3296.2,3296.1,35.0]
[1722364668138,6.06758,3296.2,3296.1,35.0]
[1722364668286,6.06758,3296.2,3295.3,7.35]
[1722364668287,3.03414,3295.9,3295.3,7.35]
[1722364668626,2.552,3295.7,3295.4,0.735]
[1722364668835,2.552,3295.7,3295.4,35.0]
[1722364669247,2.552,3296.1,3295.4,35.0]
[1722364669444,2.552,3296.1,3295.5,0.06068225]
[1722364669609,2.552,3296.1,3295.6,3.04901288]
[1722364669809,2.552,3296.1,3295.7,0.06067514]
[1722364672715,5.5859,3296.1,3294.9,3.03492]
[1722364672918,5.58595,3296.1,3295.8,35.0]
[1722364673365,2.552,3296.1,3295.8,35.0]
[1722364673717,5.58589,3296.1,3295.8,35.0]
[1722364674544,2.552,3296.1,3295.8,35.0]
[1722364674753,5.58589,3296.1,3295.8,35.0]
[1722364675750,2.552,3296.1,3295.8,35.0]
[1722364676077,5.58592,3296.1,3295.8,35.0]
[1722364676215,2.552,3296.1,3295.8,35.0]
[1722364676861,2.552,3296.1,3295.9,0.06067616]
[1722364677260,5.58593,3296.1,3295.8,35.0]
[1722364677474,5.58594,3296.1,3295.8,35.0]
[1722364677639,2.552,3296.1,3295.8,35.0]
[1722364680769,3.03407,3295.9,3295.8,35.0]
[1722364681138,8.43114,3295.9,3295.8,35.0]
[1722364681439,9.04347922,3295.9,3295.8,35.0]
[1722364681636,5.39707,3295.9,3295.8,35.0]
[1722364681828,2.363,3295.9,3295.8,35.0]
[1722364682024,3.0,3296.0,3295.8,35.0]
[1722364682421,6.03398,3296.0,3295.8,35.0]
[1722364682879,2.552,3296.1,3295.8,35.0]
[1722364683992,3.03402,3296.0,3295.8,35.0]
[1722364684278,6.06814,3295.9,3295.8,35.0]
[1722364684475,3.0344,3295.6,3294.8,2.4577]
[1722364684778,3.0344,3295.6,3294.4,3.0354]
[1722364684779,2.552,3295.3,3294.4,2.3477]
[1722364684927,2.552,3295.3,3295.1,35.0]
[1722364686360,2.552,3295.3,3295.2,3.04901288]
[1722364688571,2.552,3295.3,3294.5,3.03535]
[1722364688757,2.552,3295.3,3294.6,3.03521]
[1722364689173,2.552,3295.3,3294.7,35.0]
[1722364689404,5.29744,3295.2,3294.7,35.0]
[1722364689684,2.552,3294.9,3294.7,35.0]
[1722364689995,3.03508,3294.8,3294.7,35.0]
[1722364690150,2.552,3294.9,3294.7,35.0]
[1722364690491,5.58699,3294.9,3294.7,35.0]
[1722364690796,6.07016,3294.8,3294.7,35.0]
[1722364691645,0.862216,3294.8,3293.6,2.4872]
[1722364691861,2.552,3294.2,3293.6,2.4872]
[1722364692236,2.552,3294.2,3293.7,35.0]
[1722364692838,5.58736,3294.6,3293.7,35.0]
[1722364693039,2.552,3294.6,3293.7,35.0]
[1722364693285,5.58728,3294.6,3293.7,35.0]
[1722364694051,2.552,3294.6,3293.8,3.1097199]
[1722364694379,7.39,3294.9,3293.8,3.1097199]
[1722364694380,7.39,3294.9,3294.1,3.03572]
[1722364694599,7.39,3294.9,3294.2,0.06069772]
[1722364694798,7.39,3294.9,3294.3,0.06069772]
[1722364694979,2.2627,3295.2,3294.3,0.06069772]
[1722364695142,5.58655,3295.4,3294.3,5.76422949]
[1722364695539,2.552,3295.4,3294.3,2.72873949]
[1722364695748,2.552,3295.4,3294.6,3.03525]
[1722364695981,2.552,3295.4,3294.7,0.06068852]
[1722364696185,2.552,3295.8,3294.9,3.03494]
[1722364696385,2.552,3295.8,3295.0,0.06068231]
[1722364696597,5.58617,3295.8,3294.8,0.30959385]
[1722364696760,8.62041,3295.8,3294.6,3.03526]
[1722364696965,2.552,3295.4,3294.4,10.38539]
[1722364697161,2.552,3295.4,3294.5,6.5853]
[1722364697348,2.552,3295.8,3294.6,3.03521]
[1722364697704,2.552,3295.8,3294.5,3.61068829]
[1722364697705,2.552,3295.8,3294.9,3.03492]
[1722364697865,2.552,3295.8,3295.0,3.39905431]
[1722364698195,2.552,3295.8,3295.0,0.36417431]
[1722364698699,5.58617,3295.8,3295.0,0.303492]
[1722364698858,5.58617,3295.8,3294.7,3.58513]
[1722364699064,2.552,3295.8,3294.9,3.03498]
[1722364699364,2.552,3295.8,3295.0,0.06068235]
[1722364700303,3.03427,3295.7,3294.7,0.55]
[1722364700478,3.03427,3295.7,3294.6,0.55]
[1722364700649,3.03427,3295.7,3294.7,0.355]
[1722364700849,3.03427,3295.7,3294.8,0.55]
[1722364701151,2.552,3295.8,3294.8,0.55]
[1722364701348,5.58618,3295.8,3294.8,0.55]
[1722364702302,2.4426,3296.1,3294.9,0.06068243]
[1722364702505,9.942,3296.2,3295.3,3.03457]
[1722364702799,9.942,3296.2,3295.4,0.36413235]
[1722364702950,3.0,3296.3,3295.5,0.06067535]
[1722364703156,4.9838,3296.6,3295.5,3.0344]
[1722364703157,3.0,3296.5,3295.5,3.0344]
[1722364703710,3.0,3296.5,3295.4,3.337967]
[1722364703924,6.03353,3296.5,3295.5,1.6188007]
[1722364704554,3.0,3296.5,3295.5,1.6188007]
[1722364704767,3.03366,3296.4,3295.5,1.0688007]
[1722364704968,3.0,3296.3,3295.5,1.0688007]
[1722364705307,3.03403,3296.0,3295.4,0.303457]
[1722364706197,2.552,3295.8,3294.5,15.66563]
[1722364706460,5.58618,3295.8,3294.6,3.0352]
[1722364706598,5.58618,3295.8,3294.8,0.33902]
[1722364706994,3.03463,3295.3,3294.7,0.355]
[1722364707251,2.552,3295.4,3294.5,7.35]
[1722364707539,2.61269081,3295.8,3294.7,3.03517]
[1722364707697,3.0,3295.7,3294.7,3.03517]
[1722364707898,3.0,3295.7,3294.8,0.303517]
[1722364708297,3.03444,3295.5,3294.8,0.303517]
[1722364708496,3.03444,3295.5,3294.5,7.35]
[1722364709248,3.0,3295.7,3294.8,3.03505]
[1722364709401,3.0,3295.7,3294.7,3.03512]
[1722364710601,3.0,3295.7,3294.7,3.03511]
[1722364711267,3.0,3295.7,3294.8,3.03503]
[1722364712463,3.0,3295.7,3294.9,3.03497]
[1722364712777,3.0,3295.7,3295.0,3.03489]
[1722364712964,3.0,3295.7,3295.1,0.606986]
[1722364713342,3.0,3295.7,3295.2,0.06068388]
[1722364713546,3.0,3295.7,3295.2,3.09539388]
[1722364713759,3.0,3296.1,3295.2,0.06068388]
[1722364714073,3.0,3296.1,3295.1,0.606986]
[1722364714260,3.0,3296.1,3295.1,3.641786]
[1722364714602,12.72622,3296.3,3295.2,0.06067926]
[1722364714603,9.6925,3296.3,3295.2,0.06067926]
[1722364714729,2.552,3296.2,3295.1,0.606986]
[1722364715079,2.552,3296.2,3295.2,0.06067571]
[1722364715430,2.552,3296.2,3295.3,0.06067572]
[1722364715646,2.552,3296.2,3295.4,3.03445]
[1722364715961,2.552,3296.2,3295.5,3.40461831]
[1722364716157,2.552,3296.2,3295.5,0.37018831]
[1722364716836,2.552,3296.2,3295.5,0.06067574]
[1722364718042,2.552,3296.6,3295.6,3.03434]
[1722364718290,3.0,3296.5,3295.7,3.03425]
[1722364718508,3.0,3296.5,3295.6,3.09501578]
[1722364718509,3.0,3296.5,3295.8,3.70774638]
[1722364718641,7.39,3296.7,3295.8,0.67359638]
[1722364718958,7.39,3296.7,3295.8,6.1288998]
[1722364719155,7.39,3296.7,3295.8,3.0947498]
[1722364719367,7.39,3296.7,3296.0,3.03396]
[1722364719550,7.39,3296.7,3296.1,3.09449495]
[1722364719746,2.552,3297.0,3296.2,0.6128405]
[1722364719980,3.0,3296.9,3296.3,0.06066269]
[1722364722189,6.03324,3296.9,3296.3,0.06066269]
[1722364722393,6.03324,3296.9,3295.6,3.03433]
[1722364722550,3.0,3296.9,3295.9,3.03407]
[1722364722740,3.0,3296.9,3296.0,0.06066322]
[1722364722941,3.0,3296.9,3296.0,3.09460322]
[1722364723456,3.0,3296.9,3296.0,0.06066322]
[1722364723669,3.0,3296.9,3296.0,0.37013554]
[1722364723880,2.384,3296.8,3296.0,0.37013554]
[1722364724058,2.384,3296.2,3295.2,3.03466]
[1722364724261,2.384,3296.2,3294.8,2.3471]
[1722364724576,2.384,3296.2,3295.2,3.03468]
[1722364724801,2.384,3296.2,3295.3,0.303468]
[1722364724972,5.58592,3296.1,3295.0,7.35]
[1722364725180,5.64661081,3296.1,3295.0,7.35]
[1722364725495,3.0,3296.0,3295.0,7.35]
[1722364725663,6.034,3296.0,3295.0,7.35]
[1722364725859,3.03413,3295.9,3295.1,0.368068]
[1722364726059,2.552,3295.7,3294.6,4.04126]
[1722364726303,2.552,3295.7,3294.7,3.03514]
[1722364726503,2.552,3295.7,3294.6,4.04126]
[1722364726504,2.552,3295.7,3294.8,3.03508]
[1722364726657,2.552,3295.7,3294.6,4.0412]
[1722364727000,2.552,3295.7,3294.7,0.40412]
[1722364727201,2.552,3295.7,3294.7,3.43927]
[1722364727404,2.552,3295.7,3294.8,3.03507]
[1722364727909,5.58631,3295.7,3294.7,0.40412]
[1722364728076,5.58631,3295.7,3294.8,0.34393]
[1722364728423,2.552,3295.7,3294.8,0.34393]
[1722364729110,5.58626,3295.7,3294.8,0.34393]
[1722364730562,2.552,3295.7,3294.8,0.34393]
[1722364731009,2.552,3295.7,3294.8,3.379]
[1722364731311,2.552,3295.7,3294.9,0.3379]
[1722364731668,2.552,3295.7,3294.7,3.03516]
[1722364732018,2.552,3295.7,3294.7,3.03511]
[1722364732254,2.552,3295.7,3294.9,3.03496]
[1722364732393,7.39,3295.9,3294.4,5.74543]
[1722364732598,7.39,3295.9,3295.0,3.03484]
[1722364734027,7.39,3295.9,3295.2,35.0]
[1722364735295,10.42414,3295.9,3295.2,35.0]
[1722364735500,2.552,3295.7,3295.2,35.0]
[1722364736044,5.58627,3295.7,3295.2,35.0]
[1722364736196,5.53361,3295.6,3295.2,35.0]
[1722364736395,2.4992,3295.6,3295.2,35.0]
[1722364737841,5.53359,3295.6,3295.2,35.0]
[1722364738053,2.4992,3295.6,3295.2,35.0]
[1722364738203,8.62124,3295.3,3295.2,35.0]
[1722364738403,3.03481,3295.1,3293.8,3.03596]
[1722364738602,3.03481,3295.1,3293.7,3.03608]
[1722364738603,5.58714,3294.8,3293.7,3.03608]
[1722364739052,5.58714,3294.8,3294.6,35.0]
[1722364739511,3.06069081,3295.0,3294.6,35.0]
[1722364739512,3.0,3295.0,3294.6,35.0]
[1722364739772,3.0,3295.0,3294.6,37.62583387]
[1722364740250,3.0,3295.0,3294.6,35.0]
[1722364740538,6.0349,3295.0,3294.6,35.0]
[1722364740746,3.0,3295.0,3294.6,35.0]
[1722364742511,7.39,3295.1,3294.7,3.0958582]
[1722364742727,7.39,3295.1,3294.8,0.06069217]
[1722364742931,7.39,3295.1,3294.9,0.30958522]
[1722364743101,3.0,3295.5,3295.0,35.0]
[1722364743301,2.4992,3295.7,3295.1,0.0606885]
[1722364743633,5.5335,3295.7,3295.1,0.0606885]
[1722364744007,3.0,3295.6,3295.2,35.0]
[1722364744709,5.4992,3295.7,3295.2,35.0]
[1722364745533,2.552,3295.6,3295.2,35.0]
[1722364745739,3.03496,3295.0,3293.9,5.51531]
[1722364745932,2.552,3294.9,3293.9,3.03589]
[1722364746142,2.552,3294.9,3293.8,3.03595]
[1722364746299,5.58707,3294.9,3294.0,35.0]
[1722364746504,2.4755,3294.7,3294.0,35.0]
[1722364746748,5.5107,3294.7,3294.0,35.0]
[1722364746914,3.03536,3294.5,3294.0,35.0]
[1722364747110,5.58736,3294.5,3294.0,35.0]
[1722364747707,2.552,3294.5,3294.0,37.10668285]
[1722364748238,5.58742,3294.5,3294.0,37.10668285]
[1722364748643,2.552,3294.5,3294.0,37.10668285]
[1722364749455,0.06069081,3294.4,3294.0,35.0]
[1722364749608,3.0356,3294.3,3294.0,35.0]
[1722364749811,5.4755,3294.7,3294.0,35.0]
[1722364749812,4.9111,3294.1,3294.0,35.0]
[1722364750010,3.03587,3294.0,3292.7,3.03696]
[1722364750311,3.03587,3294.0,3292.3,1.5]
[1722364750312,3.09657081,3294.0,3292.8,3.566886]
[1722364750511,3.09657081,3294.0,3292.9,35.0]
[1722364750742,3.09657081,3294.0,3292.9,38.03682]
[1722364751090,3.09657081,3294.0,3292.9,35.0]
[1722364751304,3.03633,3293.5,3292.9,35.0]
[1722364751447,3.09702081,3293.5,3293.0,1.9686086]
[1722364751641,0.06069081,3293.5,3293.0,1.9686086]
[1722364751980,0.06069081,3293.6,3292.5,3.03719]
[1722364752305,0.06069081,3293.6,3293.1,35.0]
[1722364752491,5.58814,3293.7,3293.1,35.0]
[1722364752492,2.552,3293.7,3293.1,35.0]
[1722364753261,2.552,3293.7,3293.2,3.04901288]
[1722364753684,3.0,3293.9,3293.2,3.04901288]
[1722364753886,3.06069081,3294.0,3293.3,0.06072084]
[1722364754042,3.06069081,3294.0,3293.2,3.04901288]
[1722364754248,3.06069081,3294.0,3293.3,3.04901288]
[1722364754557,3.0,3294.0,3293.3,3.10973602]
[1722364754753,6.03582,3294.0,3293.3,0.06072314]
[1722364754957,6.03582,3294.0,3293.4,35.0]
[1722364755169,3.0,3294.0,3293.4,35.0]
[1722364755388,3.0,3294.0,3293.5,0.06071764]
[1722364756192,3.0,3294.0,3293.4,35.0]
[1722364756458,3.0,3294.0,3293.5,3.04901288]
[1722364756999,2.552,3293.7,3293.4,35.0]
[1722364757403,0.06069081,3293.6,3293.4,35.0]
[1722364759335,2.61269081,3293.7,3293.4,35.0]
[1722364760007,2.552,3293.7,3293.4,35.0]
[1722364760212,3.0,3294.0,3293.4,38.04901288]
[1722364760931,3.0,3294.0,3293.5,0.06071849]
[1722364761507,6.03587,3294.0,3293.5,0.06071849]
[1722364761820,3.03592,3293.9,3293.4,35.0]
[1722364762022,3.0,3294.0,3293.4,35.0]
[1722364762595,2.552,3293.7,3293.4,35.0]
[1722364763389,5.64879081,3293.7,3293.4,35.0]
[1722364763625,3.03624,3293.6,3293.4,35.0]
[1722364763779,3.09693081,3293.6,3293.4,35.0]
[1722364764329,0.06069081,3293.6,3293.4,35.0]
[1722364765027,2.552,3293.7,3293.4,36.16335748]
[1722364765783,3.09688081,3293.6,3293.4,35.0]
[1722364766423,3.03628,3293.5,3293.4,35.0]
[1722364766628,5.46758,3293.5,3293.4,35.0]
[1722364766875,5.52827081,3293.5,3293.4,35.0]
[1722364768395,3.03689,3292.9,3291.9,7.35]
[1722364768534,2.552,3292.5,3291.9,0.735]
[1722364768875,2.552,3292.5,3292.0,35.0]
[1722364769433,3.0373,3292.4,3292.0,35.0]
[1722364769930,2.552,3292.5,3292.0,35.0]
[1722364771246,2.4313,3292.8,3291.7,3.03793]
[1722364771470,2.4313,3292.8,3291.8,3.40238992]
[1722364771677,0.06069081,3292.7,3291.9,35.0]
[1722364771975,3.0,3292.7,3292.0,0.06074694]
[1722364772185,5.4313,3292.8,3292.0,0.06074694]
[1722364772534,5.4313,3292.8,3292.1,35.0]
[1722364772772,3.0,3292.8,3292.2,3.10975444]
[1722364773076,3.0,3292.8,3292.3,0.06074156]
[1722364773241,3.06069081,3292.8,3292.0,2.4412]
[1722364773458,0.06069081,3292.7,3292.4,35.0]
[1722364773779,3.03714,3292.6,3292.4,35.0]
[1722364773933,2.552,3292.5,3292.4,35.0]
[1722364774681,2.552,3292.5,3291.6,5.31411]
[1722364775135,2.552,3292.5,3291.7,35.0]
[1722364775332,2.552,3292.5,3291.8,3.04901288]
[1722364775333,2.61269081,3292.5,3291.8,3.04901288]
[1722364775891,2.61269081,3292.5,3291.6,5.31411]
[1722364776052,2.552,3292.9,3291.9,35.0]
[1722364776237,3.0,3292.8,3292.0,0.06074167]
[1722364776437,3.0,3292.8,3292.1,3.04901288]
[1722364776759,3.0,3292.8,3292.2,0.06074168]
[1722364776960,3.0,3292.9,3292.1,6.08657288]
[1722364777188,3.0,3292.9,3292.2,0.91241829]
[1722364777944,3.0,3292.9,3292.2,3.94988829]
[1722364778145,3.0,3292.9,3292.2,0.91241829]
[1722364779078,2.4064,3293.6,3292.6,3.03706]
[1722364779234,2.46709081,3293.6,3292.7,0.303706]
[1722364779432,5.50333081,3293.6,3292.7,0.303706]
[1722364779641,8.53959081,3293.6,3292.8,35.0]
[1722364779966,2.552,3293.3,3292.8,35.0]
[1722364781054,2.4064,3293.6,3292.8,35.0]